bitfinex/quotes_SOLUSD_20241029
["timestamp","ask_amount","ask_price","bid_price","bid_amount"]
[1730191086708,7.41770708,181.38,181.35,0.1]
[1730191087304,12.93110708,181.38,181.35,0.1]
[1730191088600,12.93110708,181.38,181.34,0.1]
[1730191088915,12.93110708,181.38,181.35,0.1]
[1730191089300,5.5134,181.38,181.35,0.1]
[1730191089499,12.93110708,181.38,181.35,0.1]
[1730191091905,7.41770708,181.36,181.33,0.1]
[1730191092104,7.41770708,181.34,181.31,0.1]
[1730191092704,7.41770708,181.32,181.28,0.1]
[1730191092908,7.41770708,181.31,181.28,0.1]
[1730191093120,7.41770708,181.3,181.28,0.1]
[1730191093305,7.41770708,181.3,181.27,0.1]
[1730191093625,7.41770708,181.32,181.29,0.1]
[1730191094519,5.5145,181.34,181.31,0.1]
[1730191094720,5.5145,181.34,181.33,0.1]
[1730191095221,5.5145,181.34,181.32,0.1]
[1730191096317,5.5145,181.34,181.31,0.1]
[1730191096727,7.41770708,181.32,181.29,0.1]
[1730191097824,12.93300708,181.32,181.29,0.1]
[1730191098326,5.5153,181.32,181.29,0.1]
[1730191100216,12.93300708,181.32,181.26,0.1]
[1730191100419,7.41770708,181.3,181.26,0.2]
[1730191100626,7.41770708,181.29,181.26,0.2]
[1730191102427,7.41770708,181.29,181.26,0.1]
[1730191102627,20.3384,181.35,181.28,0.1]
[1730191102917,7.41770708,181.33,181.28,7.61770708]
[1730191103123,7.41770708,181.32,181.28,0.2]
[1730191105025,5.5154,181.31,181.28,0.2]
[1730191105924,7.41770708,181.31,181.28,0.1]
[1730191106133,7.41770708,181.29,181.27,0.1]
[1730191106309,7.41770708,181.29,181.26,0.1]
[1730191106624,13.7855,181.35,181.26,0.1]
[1730191106625,7.41770708,181.28,181.26,0.1]
[1730191106808,7.41770708,181.28,181.27,0.1]
[1730191107608,12.93400708,181.28,181.27,0.1]
[1730191107811,12.93400708,181.28,181.25,0.2]
[1730191108030,12.93400708,181.28,181.27,0.1]
[1730191109626,12.93400708,181.28,181.25,0.1]
[1730191109826,7.41770708,181.26,181.24,0.7111259]
[1730191110031,5.5163,181.28,181.24,0.7111259]
[1730191110032,7.41770708,181.25,181.24,0.7111259]
[1730191112332,7.41770708,181.25,181.24,0.6111259]
[1730191112628,12.93490708,181.25,181.24,0.6111259]
[1730191113429,5.5172,181.25,181.24,0.6111259]
[1730191115515,13.7899,181.3,181.24,0.6111259]
[1730191115728,7.41770708,181.26,181.24,0.6111259]
[1730191116440,23.776884,181.29,181.24,0.7111259]
[1730191116730,7.41770708,181.27,181.24,0.6111259]
[1730191116933,7.41770708,181.27,181.24,0.7111259]
[1730191117509,12.93460708,181.27,181.24,0.7111259]
[1730191118235,5.5169,181.27,181.24,0.7111259]
[1730191118824,12.93460708,181.27,181.24,0.7111259]
[1730191121848,5.5151,181.32,181.26,0.1]
[1730191122013,7.41770708,181.31,181.26,7.51770708]
[1730191122328,7.41770708,181.31,181.27,0.1]
[1730191122913,5.5157,181.3,181.27,0.1]
[1730191123339,12.93340708,181.3,181.27,0.1]
[1730191126211,12.93340708,181.3,181.24,0.6111259]
[1730191126212,23.776884,181.27,181.24,0.6111259]
[1730191126409,7.41770708,181.25,181.24,0.6111259]
[1730191126952,7.41770708,181.25,181.24,0.7111259]
[1730191127533,23.776884,181.27,181.24,0.7111259]
[1730191127736,7.41770708,181.27,181.24,0.7111259]
[1730191128528,17.15501263,181.28,181.25,0.1]
[1730191129022,11.63841263,181.31,181.26,0.1]
[1730191129232,5.5151,181.32,181.3,0.1]
[1730191129537,30.0,181.31,181.3,0.1]
[1730191130440,5.5151,181.32,181.3,0.1]
[1730191131449,35.41529663,181.31,181.28,0.1]
[1730191131743,11.63841263,181.29,181.28,0.1]
[1730191131918,11.63841263,181.29,181.27,0.1]
[1730191132120,11.63841263,181.29,181.28,0.1]
[1730191132720,17.15441263,181.29,181.28,0.1]
[1730191133919,17.15441263,181.29,181.26,0.1]
[1730191134119,11.63841263,181.27,181.26,0.1]
[1730191136138,17.15501263,181.27,181.26,0.1]
[1730191137040,17.15501263,181.27,181.25,0.1]
[1730191137232,17.15501263,181.27,181.26,0.1]
[1730191137416,11.63841263,181.3,181.26,0.1]
[1730191137623,17.15411263,181.3,181.26,0.1]
[1730191138649,17.15411263,181.3,181.28,0.1]
[1730191139849,11.63841263,181.34,181.3,0.1]
[1730191140153,11.63841263,181.39,181.34,0.1]
[1730191140355,5.5128,181.4,181.37,0.1]
[1730191140644,5.5128,181.4,181.39,0.1]
[1730191140952,39.64010901,181.4,181.39,0.1]
[1730191141136,9.64010901,181.4,181.39,0.1]
[1730191141961,4.12730901,181.4,181.39,0.1]
[1730191142329,4.12340977,181.4,181.39,0.1]
[1730191142535,5.5117,181.43,181.4,0.1]
[1730191142536,17.15011263,181.43,181.4,0.1]
[1730191142845,4.12336936,181.42,181.4,0.1]
[1730191143046,4.12336936,181.41,181.4,0.1]
[1730191143254,4.12336936,181.41,181.39,0.2]
[1730191143436,5.5114,181.44,181.41,0.1]
[1730191143641,5.511,181.46,181.42,0.2]
[1730191143843,4.12077837,181.45,181.43,0.1]
[1730191144029,11.63841263,181.47,181.43,0.1]
[1730191144225,4.12062206,181.46,181.43,0.1]
[1730191144431,11.63841263,181.47,181.43,0.1]
[1730191144645,4.11707791,181.46,181.43,0.1]
[1730191144843,11.63841263,181.47,181.43,0.1]
[1730191145029,4.1170706,181.46,181.43,0.1]
[1730191145228,11.63841263,181.45,181.43,0.1]
[1730191145442,11.63841263,181.45,181.42,0.1]
[1730191145642,11.63841263,181.43,181.42,0.1]
[1730191146152,11.63841263,181.43,181.41,0.1]
[1730191147249,23.776884,181.46,181.41,0.1]
[1730191147455,5.5117,181.43,181.42,0.1]
[1730191149244,5.5117,181.43,181.41,0.1]
[1730191149470,5.5117,181.43,181.42,0.1]
[1730191150554,17.15011263,181.43,181.42,0.1]
[1730191150738,17.15011263,181.43,181.41,0.1]
[1730191151258,17.15011263,181.43,181.42,0.1]
[1730191152157,17.15011263,181.43,181.4,0.1]
[1730191152333,11.63841263,181.42,181.4,0.1]
[1730191153256,5.5123,181.41,181.4,0.1]
[1730191154244,11.63841263,181.41,181.39,0.1]
[1730191155231,5.5126,181.4,181.39,0.1]
[1730191157356,11.63841263,181.43,181.4,0.1]
[1730191157649,11.63841263,181.43,181.4,0.2]
[1730191159356,11.63841263,181.42,181.39,0.1]
[1730191162158,5.5123,181.41,181.39,0.1]
[1730191164563,7.4371063,181.42,181.39,0.1]
[1730191165556,12.9497063,181.4,181.37,0.1]
[1730191165755,7.4371063,181.38,181.37,0.1]
[1730191166156,7.4371063,181.38,181.36,0.1]
[1730191166458,11.62495753,181.38,181.37,0.1]
[1730191167339,17.13815753,181.38,181.37,0.1]
[1730191168241,17.13815753,181.38,181.34,0.1]
[1730191168242,17.13815753,181.38,181.36,0.1]
[1730191168441,5.5123,181.41,181.37,11.82495753]
[1730191168763,5.5105,181.47,181.42,0.1]
[1730191169058,17.13545753,181.47,181.42,0.2]
[1730191169239,17.13545753,181.47,181.43,0.1]
[1730191169863,21.11023606,181.48,181.45,0.1]
[1730191171147,32.73519359,181.48,181.45,0.1]
[1730191171663,32.73519359,181.48,181.45,0.2]
[1730191172246,32.73519359,181.48,181.46,0.1]
[1730191172247,21.11023606,181.48,181.46,0.1]
[1730191174444,15.60003606,181.48,181.47,0.1]
[1730191174648,15.60003606,181.48,181.47,0.2]
[1730191180048,32.73519359,181.48,181.46,0.2]
[1730191180274,32.73519359,181.48,181.47,0.1]
[1730191181361,32.73519359,181.48,181.46,0.2]
[1730191181762,21.11023606,181.48,181.47,0.1]
[1730191184391,25.22804261,181.48,181.47,0.1]
[1730191184578,21.11023606,181.48,181.47,0.1]
[1730191184782,25.22803914,181.48,181.47,0.1]
[1730191185603,19.71783914,181.48,181.47,0.2]
[1730191186370,19.71783914,181.48,181.47,0.1]
[1730191186577,4.11780308,181.48,181.47,0.2]
[1730191186777,5.5096,181.51,181.47,11.82495753]
[1730191187098,5.5096,181.51,181.5,0.1]
[1730191187277,9.6289192,181.51,181.5,0.1]
[1730191187995,21.25387673,181.51,181.5,0.1]
[1730191188590,7.42912302,181.51,181.5,0.1]
[1730191188892,11.5481036,181.51,181.5,0.1]
[1730191189782,17.0574036,181.51,181.5,0.1]
[1730191189982,17.0574036,181.51,181.47,0.2]
[1730191190187,4.11898058,181.5,181.49,0.1]
[1730191190586,4.11898058,181.5,181.47,0.2]
[1730191190888,4.11898058,181.49,181.48,0.1]
[1730191191288,11.5481036,181.49,181.48,0.1]
[1730191192093,9.62888058,181.49,181.48,0.1]
[1730191192398,5.5099,181.49,181.48,0.2]
[1730191192582,9.6273341,181.49,181.48,0.2]
[1730191192895,4.1174341,181.49,181.48,0.2]
[1730191193112,5.5093,181.52,181.5,0.1]
[1730191193271,4.11651519,181.51,181.5,0.1]
[1730191193783,4.11651519,181.51,181.5,0.2]
[1730191193991,9.62581519,181.51,181.5,0.2]
[1730191194291,5.5093,181.51,181.5,0.2]
[1730191195697,12.93812302,181.52,181.51,0.1]
[1730191195899,17.05341637,181.52,181.51,0.1]
[1730191196497,17.05301021,181.52,181.5,0.2]
[1730191196795,5.509,181.52,181.51,0.1]
[1730191197092,9.62401643,181.52,181.51,0.1]
[1730191197302,39.62401643,181.52,181.51,0.1]
[1730191198912,47.05313945,181.52,181.51,0.1]
[1730191199895,47.05313945,181.52,181.5,0.1]
[1730191200080,47.05313945,181.52,181.47,0.2]
[1730191200081,11.54413945,181.51,181.47,0.2]
[1730191200389,4.11522418,181.5,181.47,0.2]
[1730191200599,4.11522418,181.49,181.48,0.1]
[1730191200991,4.11522418,181.49,181.48,0.2]
[1730191201190,4.11522418,181.49,181.48,0.1]
[1730191201379,11.5443472,181.49,181.47,0.1]
[1730191201575,7.42912302,181.48,181.47,0.2]
[1730191202021,7.42912302,181.49,181.48,0.1]
[1730191202190,11.5446762,181.49,181.48,0.1]
[1730191202591,4.11555318,181.49,181.48,0.2]
[1730191202802,12.93842302,181.51,181.49,0.2]
[1730191202975,30.0,181.52,181.5,0.2]
[1730191203288,4.11551918,181.51,181.5,0.2]
[1730191204008,9.62481918,181.51,181.5,0.2]
[1730191204483,17.0539422,181.51,181.5,0.1]
[1730191204681,17.0539422,181.51,181.5,0.2]
[1730191205093,9.62481918,181.51,181.5,0.2]
[1730191206393,4.11551918,181.51,181.5,0.2]
[1730191206587,7.42912302,181.54,181.52,0.1]
[1730191206787,4.11604643,181.53,181.52,0.2]
[1730191207395,5.5081,181.55,181.52,0.2]
[1730191207708,4.11547413,181.54,181.53,0.1]
[1730191208003,4.11547413,181.54,181.53,0.2]
[1730191208188,9.62387413,181.54,181.53,0.2]
[1730191208389,4.11547413,181.54,181.53,0.2]
[1730191209198,12.93692302,181.56,181.55,0.1]
[1730191209410,17.05278448,181.56,181.55,0.1]
[1730191212710,4.11586146,181.56,181.55,0.2]
[1730191213990,5.5072,181.58,181.55,0.2]
[1730191214186,5.5072,181.58,181.57,0.1]
[1730191214391,17.05531248,181.58,181.57,0.1]
[1730191215406,5.5071,181.59,181.58,0.2]
[1730191215605,9.6259917,181.59,181.58,0.2]
[1730191215908,4.1188917,181.59,181.58,0.2]
[1730191216211,5.5066,181.6,181.58,0.2]
[1730191216509,12.93442302,181.64,181.62,0.2]
[1730191216715,9.6221199,181.63,181.62,0.2]
[1730191217995,5.5056,181.63,181.62,0.2]
[1730191218210,9.61974045,181.63,181.62,0.2]
[1730191218394,5.5056,181.63,181.62,0.2]
[1730191218597,5.5053,181.65,181.64,0.2]
[1730191218808,9.61686502,181.65,181.64,0.2]
[1730191219317,5.5049,181.66,181.65,0.1]
[1730191219522,15.42119466,181.68,181.66,0.1]
[1730191219699,20.92549466,181.68,181.67,0.1]
[1730191220213,20.92549466,181.68,181.67,0.2]
[1730191220622,15.42119466,181.68,181.67,0.2]
[1730191223409,5.5026,181.73,181.7,0.1]
[1730191223615,11.58923521,181.71,181.7,0.1]
[1730191223812,5.5026,181.73,181.7,0.2]
[1730191223996,5.5026,181.73,181.71,0.2]
[1730191224192,5.5017,181.76,181.72,0.1]
[1730191224391,41.58923521,181.73,181.72,0.2]
[1730191224996,11.58923521,181.73,181.72,0.2]
[1730191225199,11.58923521,181.73,181.72,0.1]
[1730191225393,11.24939471,181.76,181.72,0.2]
[1730191225711,11.58923521,181.73,181.72,0.2]
[1730191226216,17.09183521,181.73,181.72,0.2]
[1730191226406,5.5026,181.73,181.71,0.2]
[1730191226597,11.58923521,181.72,181.71,0.1]
[1730191226798,11.58923521,181.72,181.71,0.2]
[1730191227007,11.58923521,181.72,181.71,0.1]
[1730191227210,11.58923521,181.72,181.7,0.1]
[1730191227518,11.58923521,181.71,181.68,0.1]
[1730191227815,11.58923521,181.69,181.68,0.1]
[1730191227991,11.58923521,181.69,181.66,0.1]
[1730191228311,11.58923521,181.67,181.64,0.1]
[1730191228510,5.5038,181.69,181.64,0.1]
[1730191228511,11.58923521,181.65,181.64,0.1]
[1730191229416,41.58923521,181.65,181.64,0.1]
[1730191230005,41.58923521,181.65,181.61,0.1]
[1730191230211,11.58923521,181.62,181.61,0.1]
[1730191230429,11.58923521,181.62,181.61,0.2]
[1730191231922,29.280984,181.68,181.63,0.1]
[1730191232104,11.58923521,181.64,181.63,0.2]
[1730191232616,5.5038,181.69,181.66,0.2]
[1730191232805,5.5038,181.69,181.68,0.1]
[1730191233191,5.5026,181.73,181.69,0.1]
[1730191233613,75.74769471,181.76,181.73,0.2]
[1730191233614,5.502,181.75,181.73,0.2]
[1730191233811,41.58923521,181.74,181.73,0.2]
[1730191234312,47.09153521,181.74,181.73,0.2]
[1730191235322,5.5023,181.74,181.73,0.2]
[1730191235791,17.09153521,181.74,181.73,0.2]
[1730191235996,5.5011,181.78,181.77,0.1]
[1730191236196,30.0,181.78,181.77,0.1]
[1730191236494,47.09033521,181.78,181.77,0.1]
[1730191236895,35.5011,181.78,181.77,0.1]
[1730191237225,5.5005,181.8,181.79,0.2]
[1730191237416,28.67897042,181.8,181.77,0.2]
[1730191237714,11.58923521,181.78,181.74,0.2]
[1730191237889,11.58923521,181.75,181.74,0.2]
[1730191238290,17.09123521,181.75,181.74,0.2]
[1730191243409,30.84633521,181.75,181.7,0.2]
[1730191243616,11.58923521,181.71,181.7,0.2]
[1730191244130,23.17847042,181.71,181.68,0.1]
[1730191244309,11.58923521,181.69,181.68,0.1]
[1730191244708,11.58923521,181.69,181.68,0.2]
[1730191245125,17.09303521,181.69,181.68,0.2]
[1730191249121,17.09303521,181.69,181.66,0.1]
[1730191249332,11.58923521,181.67,181.66,0.1]
[1730191249711,11.58923521,181.67,181.64,0.1]
[1730191249914,11.58923521,181.65,181.64,0.2]
[1730191251225,17.09423521,181.65,181.63,0.2]
[1730191251403,11.58923521,181.64,181.62,0.1]
[1730191251606,11.58923521,181.63,181.61,0.1]
[1730191251805,11.58923521,181.62,181.61,0.2]
[1730191252009,11.58923521,181.62,181.6,0.2]
[1730191252236,11.58923521,181.62,181.61,0.1]
[1730191252435,11.58923521,181.62,181.61,0.2]
[1730191253007,40.87211921,181.62,181.59,0.1]
[1730191253230,23.17847042,181.6,181.59,0.1]
[1730191253537,11.58923521,181.6,181.59,0.1]
[1730191254033,11.58923521,181.6,181.59,0.2]
[1730191254430,11.58923521,181.6,181.59,0.1]
[1730191254628,17.09583521,181.6,181.59,0.1]
[1730191255019,17.09583521,181.6,181.59,0.2]
[1730191255243,11.58923521,181.6,181.59,0.2]
[1730191255539,17.09523521,181.62,181.61,0.2]
[1730191260740,11.58923521,181.62,181.61,0.2]
[1730191260921,17.09523521,181.62,181.61,0.2]
[1730191261235,11.58923521,181.63,181.61,0.2]
[1730191261437,11.58923521,181.64,181.63,0.1]
[1730191261940,11.58923521,181.64,181.63,0.2]
[1730191262119,11.58923521,181.64,181.62,0.1]
[1730191262316,11.58923521,181.63,181.59,0.1]
[1730191262535,11.58923521,181.6,181.58,0.1]
[1730191262737,23.776884,181.64,181.59,0.2]
[1730191263044,23.776884,181.65,181.61,0.2]
[1730191263244,5.506,181.62,181.61,0.2]
[1730191263539,17.09523521,181.62,181.61,0.2]
[1730191264130,17.09523521,181.62,181.61,0.1]
[1730191264327,17.09523521,181.62,181.61,0.2]
[1730191266018,11.58923521,181.64,181.62,0.1]
[1730191266223,11.58923521,181.64,181.63,0.1]
[1730191266641,11.58923521,181.64,181.62,0.2]
[1730191266840,11.58923521,181.63,181.59,0.1]
[1730191267043,11.58923521,181.6,181.59,0.2]
[1730191268125,17.09583521,181.6,181.59,0.2]
[1730191268437,17.09583521,181.6,181.58,0.1]
[1730191268633,11.58923521,181.59,181.57,0.1]
[1730191268944,11.58923521,181.58,181.57,0.2]
[1730191269946,11.58923521,181.58,181.56,0.1]
[1730191269947,17.09643521,181.58,181.56,0.1]
[1730191270143,11.58923521,181.57,181.56,0.2]
[1730191270324,11.58923521,181.57,181.56,0.1]
[1730191271132,11.58923521,181.57,181.52,15.8542]
[1730191271133,11.58923521,181.57,181.53,0.1]
[1730191271329,11.58923521,181.54,181.53,0.1]
[1730191272443,17.09763521,181.54,181.53,0.1]
[1730191272645,17.09763521,181.54,181.52,0.1]
[1730191272958,11.58923521,181.53,181.52,0.1]
[1730191273123,11.58923521,181.53,181.52,0.2]
[1730191274133,17.09793521,181.53,181.52,0.2]
[1730191274546,17.09793521,181.53,181.52,0.1]
[1730191274749,17.09793521,181.53,181.5,0.1]
[1730191274927,11.58923521,181.51,181.5,0.2]
[1730191275549,5.5087,181.53,181.5,0.2]
[1730191275550,11.58923521,181.52,181.51,0.1]
[1730191275741,11.58923521,181.52,181.51,0.2]
[1730191276142,17.09823521,181.52,181.51,0.2]
[1730191276455,5.5081,181.55,181.52,0.1]
[1730191276631,5.5081,181.55,181.53,0.1]
[1730191277847,17.09763521,181.54,181.53,0.1]
[1730191278653,17.09733521,181.55,181.54,0.1]
[1730191278833,11.58923521,181.56,181.54,0.2]
[1730191279030,15.0514,181.62,181.6,0.1]
[1730191279031,17.09553521,181.61,181.6,0.1]
[1730191279234,5.5063,181.61,181.6,0.1]
[1730191279447,11.58923521,181.62,181.61,0.1]
[1730191279750,5.506,181.62,181.61,0.1]
[1730191279943,5.506,181.62,181.61,0.2]
[1730191280143,5.74820943,181.66,181.65,0.2]
[1730191280344,5.5042,181.68,181.67,0.2]
[1730191280533,17.09343521,181.68,181.67,0.2]
[1730191281347,11.58923521,181.7,181.69,0.1]
[1730191281644,17.09273521,181.7,181.69,0.1]
[1730191283329,5.5035,181.7,181.69,0.2]
[1730191283733,15.68569803,181.71,181.7,0.2]
[1730191284034,21.18889803,181.71,181.7,0.2]
[1730191284441,32.77813324,181.71,181.69,0.2]
[1730191284648,11.58923521,181.7,181.69,0.2]
[1730191285851,17.09273521,181.7,181.68,0.2]
[1730191286035,5.5035,181.7,181.69,0.1]
[1730191286358,5.5035,181.7,181.68,0.2]
[1730191286559,5.5035,181.7,181.68,0.1]
[1730191286734,5.5035,181.7,181.68,0.2]
[1730191286935,17.09273521,181.7,181.69,0.2]
[1730191287147,5.5035,181.7,181.69,0.2]
[1730191290137,17.09273521,181.7,181.69,0.2]
[1730191291556,17.09273521,181.7,181.69,0.1]
[1730191291937,40.86961921,181.7,181.68,0.1]
[1730191292133,11.58923521,181.69,181.68,0.2]
[1730191292960,17.09303521,181.69,181.67,0.2]
[1730191293254,11.58923521,181.68,181.67,0.1]
[1730191293453,11.58923521,181.68,181.65,0.2]
[1730191293655,11.58923521,181.66,181.64,0.1]
[1730191293847,89.2635,181.69,181.64,0.1]
[1730191293848,11.58923521,181.65,181.64,0.1]
[1730191295041,11.58923521,181.65,181.63,0.1]
[1730191295243,17.09423521,181.65,181.64,0.1]
[1730191295765,17.09423521,181.65,181.59,0.2]
[1730191295947,11.58923521,181.6,181.59,0.2]
[1730191296556,11.58923521,181.61,181.59,0.2]
[1730191297569,11.58923521,181.61,181.6,0.1]
[1730191297740,17.09553521,181.61,181.6,0.1]
[1730191298559,5.5063,181.61,181.6,0.2]
[1730191300150,11.58923521,181.61,181.6,0.2]
[1730191301859,17.09553521,181.61,181.6,0.2]
[1730191302367,11.58923521,181.63,181.6,0.2]
[1730191302569,5.5053,181.64,181.63,0.2]
[1730191303071,17.09363521,181.67,181.66,0.2]
[1730191303274,5.5035,181.7,181.69,0.2]
[1730191303570,21.18909803,181.71,181.69,0.2]
[1730191303951,21.18909803,181.71,181.7,0.1]
[1730191304571,32.77833324,181.71,181.7,0.1]
[1730191304767,32.77833324,181.71,181.69,0.1]
[1730191305068,23.776884,181.69,181.65,0.1]
[1730191305277,11.58923521,181.66,181.64,0.1]
[1730191305456,35.36611921,181.65,181.62,0.1]
[1730191305653,35.36611921,181.65,181.63,0.1]
[1730191305872,35.36611921,181.64,181.63,0.1]
[1730191306067,40.87141921,181.64,181.63,0.1]
[1730191307761,40.87141921,181.64,181.62,0.1]
[1730191307967,17.09483521,181.63,181.62,0.2]
[1730191308459,17.09483521,181.63,181.62,0.1]
[1730191310079,17.09483521,181.63,181.62,0.2]
[1730191313270,17.09483521,181.63,181.62,0.1]
[1730191313471,17.09483521,181.63,181.61,0.1]
[1730191313673,11.58923521,181.62,181.59,0.1]
[1730191313984,11.58923521,181.6,181.59,0.1]
[1730191315059,17.09583521,181.6,181.59,0.1]
[1730191315364,17.09583521,181.6,181.59,0.2]
[1730191316073,17.09583521,181.6,181.58,0.2]
[1730191316383,11.58923521,181.59,181.57,0.2]
[1730191316553,11.58923521,181.58,181.57,0.2]
[1730191317184,17.09643521,181.58,181.57,0.2]
[1730191317981,17.09643521,181.58,181.57,0.1]
[1730191318561,17.09643521,181.58,181.57,0.2]
[1730191319691,17.09643521,181.58,181.55,0.1]
[1730191319878,11.58923521,181.56,181.53,0.2]
[1730191320083,11.58923521,181.54,181.53,0.2]
[1730191320384,11.58923521,181.54,181.49,6.0612]
[1730191320385,35.36611921,181.54,181.5,0.1]
[1730191320564,23.776884,181.54,181.53,0.1]
[1730191320759,23.776884,181.57,181.54,0.1]
[1730191321594,23.776884,181.57,181.55,0.1]
[1730191321758,17.09703521,181.56,181.55,0.1]
[1730191321957,17.09703521,181.56,181.54,0.1]
[1730191322181,11.58923521,181.55,181.53,0.2]
[1730191322491,5.5078,181.56,181.54,0.1]
[1730191322667,11.58923521,181.55,181.54,0.2]
[1730191323059,17.09703521,181.56,181.55,0.2]
[1730191323274,5.5078,181.56,181.55,0.2]
[1730191323473,17.09703521,181.56,181.55,0.2]
[1730191323862,5.5078,181.56,181.55,0.2]
[1730191324665,11.58923521,181.59,181.55,0.2]
[1730191324867,5.5072,181.58,181.57,0.1]
[1730191325572,17.09643521,181.58,181.57,0.1]
[1730191328082,17.09643521,181.58,181.57,0.2]
[1730191328967,5.5072,181.58,181.57,0.2]
[1730191329177,5.5063,181.61,181.6,0.2]
[1730191329472,5.5056,181.63,181.62,0.1]
[1730191329787,5.5056,181.63,181.62,0.2]
[1730191329986,25.35193521,181.65,181.62,0.2]
[1730191330191,5.5053,181.64,181.63,0.1]
[1730191330773,5.5053,181.64,181.62,0.2]
[1730191330973,29.282184,181.64,181.63,0.1]
[1730191331184,40.87141921,181.64,181.63,0.1]
[1730191331386,40.87141921,181.64,181.6,0.2]
[1730191331576,40.87141921,181.64,181.61,0.1]
[1730191331577,23.776884,181.63,181.61,0.1]
[1730191331777,23.776884,181.63,181.6,0.1]
[1730191331976,23.776884,181.63,181.6,0.2]
[1730191332785,40.87241921,181.61,181.6,0.2]
[1730191333287,29.283184,181.61,181.6,0.2]
[1730191333490,29.281884,181.65,181.61,0.1]
[1730191333794,35.36611921,181.63,181.62,0.1]
[1730191333968,23.776884,181.62,181.6,0.1]
[1730191334285,23.776884,181.62,181.61,0.1]
[1730191334991,40.87211921,181.62,181.61,0.1]
[1730191337488,5.506,181.62,181.61,0.2]
[1730191337996,5.505,181.65,181.64,0.1]
[1730191338775,23.776884,181.64,181.63,0.2]
[1730191338991,35.36611921,181.64,181.63,0.2]
[1730191339488,29.282484,181.63,181.62,0.1]
[1730191339670,40.87171921,181.63,181.62,0.1]
[1730191340485,40.87171921,181.63,181.62,0.2]
[1730191340874,23.776884,181.62,181.61,0.1]
[1730191341074,35.36611921,181.62,181.61,0.2]
[1730191342089,35.36611921,181.62,181.61,0.1]
[1730191342388,35.36611921,181.62,181.61,0.2]
[1730191342570,23.776884,181.62,181.61,0.2]
[1730191342772,29.282884,181.62,181.61,0.2]
[1730191342970,40.87211921,181.62,181.61,0.2]
[1730191344175,40.87211921,181.62,181.61,0.1]
[1730191344574,40.87211921,181.62,181.61,0.2]
[1730191345297,40.87211921,181.62,181.61,0.1]
[1730191345497,40.87211921,181.62,181.59,0.2]
[1730191345790,17.09583521,181.6,181.59,0.2]
[1730191346490,40.87271921,181.6,181.59,0.2]
[1730191346697,40.87271921,181.6,181.59,0.1]
[1730191346885,40.87271921,181.6,181.59,0.2]
[1730191347475,40.87271921,181.6,181.58,0.1]
[1730191347674,40.87271921,181.6,181.57,0.1]
[1730191347675,29.284084,181.58,181.57,0.1]
[1730191347890,40.87331921,181.58,181.57,0.1]
[1730191348986,40.87331921,181.58,181.56,0.1]
[1730191349185,11.58923521,181.57,181.56,0.1]
[1730191349391,17.09673521,181.57,181.56,0.1]
[1730191349703,40.87361921,181.57,181.56,0.2]
[1730191349875,17.09673521,181.57,181.56,0.2]
[1730191351593,23.776884,181.6,181.59,0.2]
[1730191351797,35.36611921,181.6,181.59,0.2]
[1730191352592,5.5063,181.61,181.59,0.2]
[1730191352796,17.09553521,181.61,181.6,0.1]
[1730191354905,17.09553521,181.61,181.6,0.2]
[1730191355401,17.09553521,181.61,181.6,0.1]